bitfinex/quotes_BTCUSD_20250831
["timestamp","ask_amount","ask_price","bid_price","bid_amount"]
[1756605062624,0.55858868,109600.0,109590.0,0.22965]
[1756605062775,1.14836874,109600.0,109590.0,0.22965]
[1756605062970,1.14638874,109600.0,109590.0,0.4121484]
[1756605063201,1.14836874,109600.0,109590.0,0.22965]
[1756605063422,1.14551218,109600.0,109590.0,0.22965]
[1756605063576,1.14836871,109600.0,109590.0,0.22965]
[1756605064121,1.16448761,109600.0,109590.0,0.22436]
[1756605064263,1.16448761,109600.0,109590.0,0.0702]
[1756605064466,1.16448761,109600.0,109590.0,0.22436]
[1756605065086,1.16348761,109600.0,109590.0,0.22436]
[1756605065288,1.16348761,109600.0,109590.0,0.22536]
[1756605065503,1.16348761,109600.0,109590.0,0.22436]
[1756605065813,1.16448761,109600.0,109590.0,0.22436]
[1756605066882,1.16548761,109600.0,109590.0,0.22436]
[1756605067698,1.16548761,109600.0,109590.0,0.0702]
[1756605067903,5.72398361,109600.0,109590.0,0.22436]
[1756605068102,5.13279355,109600.0,109590.0,0.22436]
[1756605068403,5.72257361,109600.0,109590.0,0.22965]
[1756605069020,1.16350761,109600.0,109590.0,0.22965]
[1756605069790,1.16548761,109600.0,109590.0,0.22436]
[1756605070031,1.46178764,109600.0,109590.0,0.0702]
[1756605070214,0.52251505,109580.0,109570.0,0.26507789]
[1756605070433,1.11427511,109580.0,109570.0,0.50323424]
[1756605070865,1.12855915,109580.0,109570.0,0.50323424]
[1756605071461,1.12855915,109580.0,109570.0,0.50530464]
[1756605071948,1.12855915,109580.0,109570.0,0.50730464]
[1756605072512,1.12855915,109580.0,109570.0,0.50830464]
[1756605073389,1.12855915,109580.0,109570.0,0.50730464]
[1756605073690,0.35428404,109580.0,109570.0,0.50730464]
[1756605074092,0.64917407,109580.0,109570.0,0.50730464]
[1756605074891,0.64917407,109580.0,109570.0,0.50530464]
[1756605075135,0.64917407,109580.0,109570.0,0.50630464]
[1756605075670,0.35428404,109580.0,109570.0,0.50630464]
[1756605075878,0.01428404,109580.0,109570.0,0.80119467]
[1756605076082,0.01428404,109580.0,109570.0,0.82863367]
[1756605076491,0.01428404,109580.0,109570.0,0.53374364]
[1756605077917,0.30917407,109580.0,109570.0,0.53374364]
[1756605078679,0.01428404,109580.0,109570.0,0.53374364]
[1756605079918,0.30917407,109580.0,109570.0,0.53374364]
[1756605081671,0.01428404,109580.0,109570.0,0.53374364]
[1756605086625,0.30917407,109580.0,109570.0,0.53374364]
[1756605091293,0.01428404,109580.0,109570.0,0.53374364]
[1756605094195,0.01428404,109580.0,109570.0,0.82863367]
[1756605094427,0.01428404,109580.0,109570.0,1.06519178]
[1756605094644,0.01428404,109580.0,109570.0,0.91519178]
[1756605095777,0.01428404,109580.0,109570.0,1.06519178]
[1756605095959,0.01428404,109580.0,109570.0,0.91519178]
[1756605097266,0.01428404,109580.0,109570.0,0.84957249]
[1756605099604,0.01428404,109580.0,109570.0,0.99957249]
[1756605099787,0.01428404,109580.0,109570.0,0.91519178]
[1756605099992,0.3458374,109600.0,109590.0,0.1824984]
[1756605100189,0.64270743,109600.0,109590.0,0.43183841]
[1756605101270,0.82518918,109600.0,109590.0,0.27547841]
[1756605101487,0.82518918,109600.0,109590.0,0.43183841]
[1756605101685,0.82718918,109600.0,109590.0,0.43183841]
[1756605101894,0.82718918,109600.0,109590.0,0.27547841]
[1756605102055,1.12348921,109600.0,109590.0,0.15636]
[1756605102419,1.12148921,109600.0,109590.0,0.15636]
[1756605102728,1.12007921,109600.0,109590.0,0.3388584]
[1756605103826,1.12007921,109600.0,109590.0,0.15636]
[1756605104461,1.12007921,109600.0,109590.0,0.22656]
[1756605106379,1.12007921,109600.0,109590.0,0.4090584]
[1756605107083,1.12007921,109600.0,109590.0,0.4120984]
[1756605108493,1.12007921,109600.0,109590.0,0.4090584]
[1756605108701,1.12007921,109600.0,109590.0,0.0702]
[1756605108856,0.53029915,109600.0,109590.0,0.22644]
[1756605109055,1.12007921,109600.0,109590.0,0.22644]
[1756605109253,1.12007921,109600.0,109590.0,0.4089384]
[1756605109679,0.53029915,109600.0,109590.0,0.4089384]
[1756605109877,1.12007921,109600.0,109590.0,0.4089384]
[1756605110468,0.82518918,109600.0,109590.0,0.4089384]
[1756605110673,1.12007921,109600.0,109590.0,0.4119484]
[1756605110831,1.12007921,109600.0,109590.0,0.4089384]
[1756605111848,0.53029915,109600.0,109590.0,0.4089384]
[1756605112054,1.12007921,109600.0,109590.0,0.4119484]
[1756605112646,1.12007921,109600.0,109590.0,0.4089384]
[1756605113179,0.92297165,109600.0,109590.0,0.4089384]
[1756605113325,0.77424181,109600.0,109590.0,0.4089384]
[1756605113881,0.78693018,109600.0,109590.0,0.4089384]
[1756605114529,0.78693018,109600.0,109590.0,0.4119484]
[1756605114979,0.19715012,109600.0,109590.0,0.4119484]
[1756605115158,0.78693018,109600.0,109590.0,0.4119484]
[1756605115906,0.78693018,109600.0,109590.0,0.4117484]
[1756605116113,0.19715012,109600.0,109590.0,0.4138284]
[1756605116292,0.78693018,109600.0,109590.0,0.4138284]
[1756605117671,0.49204015,109600.0,109590.0,0.4138284]
[1756605118942,0.49204015,109600.0,109590.0,0.4117484]
[1756605119100,0.49204015,109600.0,109590.0,0.4086584]
[1756605119484,0.01268837,109600.0,109590.0,0.97255726]
[1756605119722,0.4406,109610.0,109600.0,0.35342057]
[1756605119919,0.0004,109610.0,109600.0,0.88919064]
[1756605120120,0.0004,109610.0,109600.0,0.89127064]
[1756605120846,0.0004,109610.0,109600.0,0.91869964]
[1756605121304,0.0014,109610.0,109600.0,0.91869964]
[1756605121485,0.0014,109610.0,109600.0,0.72178132]
[1756605121651,0.0004,109610.0,109600.0,0.72178132]
[1756605121864,0.0004,109610.0,109600.0,0.72478132]
[1756605122238,0.0004,109610.0,109600.0,0.72678132]
[1756605122895,0.0004,109610.0,109600.0,0.48987958]
[1756605123098,0.0004,109610.0,109600.0,0.88274132]
[1756605125056,0.0004,109610.0,109600.0,0.72678132]
[1756605125258,0.0004,109610.0,109600.0,0.88274132]
[1756605128771,0.0004,109610.0,109600.0,0.33391958]
[1756605128976,0.0004,109610.0,109600.0,0.88270132]
[1756605130197,0.0004,109610.0,109600.0,0.48983958]
[1756605130397,0.0004,109610.0,109600.0,0.88270132]
[1756605132767,0.0004,109610.0,109600.0,0.72678132]
[1756605132972,0.0004,109610.0,109600.0,0.88258132]
[1756605134519,0.0004,109610.0,109600.0,0.72678132]
[1756605134723,0.0004,109610.0,109600.0,0.88258132]
[1756605136516,0.0004,109610.0,109600.0,0.72678132]
[1756605136711,0.0004,109610.0,109600.0,0.48959958]
[1756605137368,0.00238,109610.0,109600.0,0.48959958]
[1756605137548,0.00238,109610.0,109600.0,0.33391958]
[1756605137913,0.00238,109610.0,109600.0,0.46353076]
[1756605138327,0.00238,109610.0,109600.0,0.46654076]
[1756605138727,0.00238,109610.0,109600.0,0.46862076]
[1756605141918,0.0004,109610.0,109600.0,0.46862076]
[1756605143403,0.0004,109610.0,109600.0,0.46662076]
[1756605143746,0.0004,109610.0,109600.0,0.46762076]
[1756605143947,0.0004,109610.0,109600.0,0.46462076]
[1756605144161,0.0004,109610.0,109600.0,0.46362076]
[1756605144382,0.0004,109610.0,109600.0,0.46562076]
[1756605144590,0.0004,109610.0,109600.0,0.75933979]
[1756605144788,0.0004,109610.0,109600.0,0.76133979]
[1756605147376,0.0004,109630.0,109620.0,0.18244845]
[1756605147603,0.0004,109630.0,109620.0,0.8131718]
[1756605147805,0.0004,109630.0,109620.0,0.98503169]
[1756605148069,0.0004,109630.0,109620.0,1.01241269]
[1756605148476,0.0014,109630.0,109620.0,1.01241269]
[1756605148670,0.00054292,109630.0,109620.0,1.01241269]
[1756605149080,0.00054292,109630.0,109620.0,1.01641269]
[1756605149283,0.00054292,109630.0,109620.0,0.46858757]
[1756605149422,0.00054292,109630.0,109620.0,1.01637269]
[1756605150225,0.00054292,109630.0,109620.0,1.01937269]
[1756605151218,0.00054292,109630.0,109620.0,0.62682757]
[1756605151430,0.00054292,109630.0,109620.0,1.01937269]
[1756605152096,0.00054292,109630.0,109620.0,1.0606578]
[1756605152542,0.00054292,109630.0,109620.0,0.9054178]
[1756605152753,0.00054292,109630.0,109620.0,1.0606178]
[1756605152979,0.00054292,109630.0,109620.0,0.66807268]
[1756605153200,0.00054292,109630.0,109620.0,0.60241339]
[1756605154023,0.00054292,109630.0,109620.0,0.99495851]
[1756605154440,0.00054292,109630.0,109620.0,0.60241339]
[1756605156298,0.00054292,109630.0,109620.0,0.65132361]
[1756605156494,0.00054292,109630.0,109620.0,0.99495851]
[1756605158959,0.00054292,109630.0,109620.0,1.1105778]
[1756605161000,0.00054292,109630.0,109620.0,1.0606178]
[1756605163068,0.00054292,109630.0,109620.0,0.99499851]
[1756605163533,0.00054292,109630.0,109620.0,0.60245339]
[1756605163742,0.00054292,109630.0,109620.0,0.99499851]
[1756605164247,0.00054292,109630.0,109620.0,0.60241339]
[1756605164446,0.00054292,109630.0,109620.0,0.65127451]
[1756605165574,0.00054292,109630.0,109620.0,1.04381963]
[1756605165776,0.00054292,109630.0,109620.0,0.65127451]
[1756605166191,0.00054292,109630.0,109620.0,0.99495851]
[1756605166401,0.00054292,109630.0,109620.0,1.04381198]
[1756605167589,0.00054292,109630.0,109620.0,0.65126686]
[1756605167740,0.00054292,109630.0,109620.0,1.04381198]
[1756605169186,0.00054292,109630.0,109620.0,0.88865198]
[1756605169393,0.00054292,109630.0,109620.0,0.99483851]
[1756605170272,0.00054292,109630.0,109620.0,0.44725339]
[1756605170468,0.00252292,109630.0,109620.0,0.65109745]
[1756605171322,0.00252292,109630.0,109620.0,0.64709745]
[1756605171475,0.00252292,109630.0,109620.0,0.64409745]
[1756605171822,0.00054292,109630.0,109620.0,0.64809745]
[1756605174488,0.00054292,109630.0,109620.0,0.59921339]
[1756605174695,0.00054292,109630.0,109620.0,0.81845339]
[1756605176228,0.00054292,109630.0,109620.0,0.88407268]
[1756605180287,0.00054292,109630.0,109620.0,0.72911268]
[1756605180492,0.39506804,109630.0,109620.0,0.72409268]
[1756605180693,0.57890985,109630.0,109620.0,0.77262991]
[1756605182077,0.57890985,109630.0,109620.0,0.77062991]
[1756605182692,0.57890985,109630.0,109620.0,0.76862991]
[1756605182922,0.57990985,109630.0,109620.0,0.76862991]
[1756605183350,0.57990985,109630.0,109620.0,0.71954846]
[1756605185235,0.57849985,109630.0,109620.0,0.71954846]
[1756605186601,0.39606804,109630.0,109620.0,0.71954846]
[1756605187565,0.57849985,109630.0,109620.0,0.71954846]
[1756605189646,0.39606804,109630.0,109620.0,0.71954846]
[1756605190256,0.57849985,109630.0,109620.0,0.71954846]
[1756605191640,0.57990985,109630.0,109620.0,0.38238001]
[1756605192048,0.57990985,109630.0,109620.0,0.53686001]
[1756605194867,0.57849985,109630.0,109620.0,0.53686001]
[1756605195811,0.57849985,109630.0,109620.0,0.71930846]
[1756605196010,0.18595473,109630.0,109620.0,0.71930846]
[1756605196213,0.39606804,109630.0,109620.0,0.72452846]
[1756605196419,0.00154292,109630.0,109620.0,0.72452846]
[1756605196639,0.00154292,109630.0,109620.0,0.74546728]
[1756605196838,0.00154292,109630.0,109620.0,0.79454873]
[1756605197668,0.39606804,109630.0,109620.0,0.61701991]
[1756605197870,0.39606804,109630.0,109620.0,0.77149991]
[1756605198070,0.39408804,109630.0,109620.0,0.77360991]
[1756605198679,0.39308804,109630.0,109620.0,0.77360991]
[1756605199366,0.39408804,109630.0,109620.0,0.77360991]
[1756605199533,0.39408804,109630.0,109620.0,0.77460991]
[1756605200567,0.00154292,109630.0,109620.0,0.79554873]
[1756605200781,0.00154292,109630.0,109620.0,0.79654873]
[1756605204281,0.00154292,109630.0,109620.0,0.74746728]
[1756605205826,0.00154292,109630.0,109620.0,0.81308657]
[1756605206761,0.00154292,109630.0,109620.0,0.84051057]
[1756605210831,0.00154292,109630.0,109620.0,0.68603057]
[1756605211150,0.00154292,109630.0,109620.0,0.84051057]
[1756605211355,0.00154292,109630.0,109620.0,0.68603057]
[1756605211584,0.00154292,109630.0,109620.0,0.84047057]
[1756605213393,0.00154292,109630.0,109620.0,0.68603057]
[1756605213690,0.00154292,109630.0,109620.0,0.84047057]
[1756605224445,0.39254512,109650.0,109640.0,0.18240211]
[1756605224651,0.35210658,109660.0,109650.0,0.18239854]
[1756605224906,0.74948661,109660.0,109650.0,0.33683854]
[1756605225095,0.74948661,109660.0,109650.0,0.42981855]
[1756605225645,0.4066317,109660.0,109650.0,0.43315855]
[1756605226459,0.4066317,109660.0,109650.0,0.43215855]
[1756605226666,0.4066317,109660.0,109650.0,0.45957855]
[1756605227208,0.4086317,109660.0,109650.0,0.45957855]
[1756605227419,0.01608658,109660.0,109650.0,0.45957855]
[1756605227638,0.4066317,109660.0,109650.0,0.45957855]
[1756605228070,0.4076317,109660.0,109650.0,0.29979855]
[1756605228205,0.5920136,109660.0,109650.0,0.27484001]
[1756605228417,0.5900136,109660.0,109650.0,0.45723855]
[1756605229374,0.4076317,109660.0,109650.0,0.45719855]
[1756605229757,0.4076317,109660.0,109650.0,0.30279855]
[1756605230104,0.4076317,109660.0,109650.0,0.45719855]
[1756605233188,0.4076317,109660.0,109650.0,0.46250855]
[1756605233379,0.4056517,109660.0,109650.0,0.46250855]
[1756605234647,0.01310658,109660.0,109650.0,0.46250855]
[1756605235646,0.01310658,109660.0,109650.0,0.5115226]
[1756605235781,0.01508658,109660.0,109650.0,0.3571226]
[1756605235991,0.4076317,109660.0,109650.0,0.46250855]
[1756605236483,0.4076317,109660.0,109650.0,0.5115226]
[1756605236682,0.01508658,109660.0,109650.0,0.5115226]
[1756605236858,0.4076317,109660.0,109650.0,0.5115226]
[1756605240555,0.5914236,109660.0,109650.0,0.16941406]
[1756605240795,0.5914236,109660.0,109650.0,0.42977855]
[1756605241006,0.5914236,109660.0,109650.0,0.09298001]
[1756605241224,0.5914236,109660.0,109650.0,0.1544]
[1756605241640,0.59427839,109660.0,109650.0,0.1544]
[1756605242666,0.18239854,109650.0,109640.0,0.32899716]
[1756605242882,0.57494366,109650.0,109640.0,0.57637717]
[1756605243096,0.57692366,109650.0,109640.0,0.57637717]
[1756605243455,0.39452512,109650.0,109640.0,0.57961717]
[1756605244534,0.57692366,109650.0,109640.0,0.57961717]
[1756605246048,0.57692366,109650.0,109640.0,0.58168717]
[1756605246803,0.39452512,109650.0,109640.0,0.58168717]
[1756605247297,0.57692366,109650.0,109640.0,0.57961717]
[1756605248959,0.57692366,109650.0,109640.0,0.42197717]
[1756605249160,0.57692366,109650.0,109640.0,0.57633717]
[1756605249759,0.57692366,109650.0,109640.0,0.57957717]
[1756605250088,0.57692366,109650.0,109640.0,0.58164717]
[1756605251028,1.31373393,109650.0,109640.0,0.07016]
[1756605251232,1.33725433,109650.0,109640.0,0.22452]
[1756605251439,5.86796478,109650.0,109640.0,0.22452]
[1756605251639,5.89434234,109650.0,109640.0,0.22452]
[1756605251852,5.92177034,109650.0,109640.0,0.22452]
[1756605252743,5.52922522,109650.0,109640.0,0.22452]
[1756605253135,5.52281009,109650.0,109640.0,0.22452]
[1756605257051,5.52140009,109650.0,109640.0,0.22452]
[1756605257668,5.52440009,109650.0,109640.0,0.22452]
[1756605258126,5.50929313,109650.0,109640.0,0.22452]
[1756605258416,5.50729313,109650.0,109640.0,0.22452]
[1756605258629,5.5072931,109650.0,109640.0,0.22452]
[1756605258928,5.5092931,109650.0,109640.0,0.22452]
[1756605259459,5.5092931,109650.0,109640.0,0.22969]
[1756605259663,0.53025398,109650.0,109640.0,0.22969]
[1756605259868,0.9227991,109650.0,109640.0,0.22969]
[1756605261297,0.9227991,109650.0,109640.0,0.41210517]
[1756605261814,0.9227991,109650.0,109640.0,0.22969]
[1756605262270,0.92279896,109650.0,109640.0,0.22969]
[1756605266322,0.92279896,109650.0,109640.0,0.07533]
[1756605266503,0.92279896,109650.0,109640.0,0.22969]
[1756605266878,0.53025384,109650.0,109640.0,0.41210517]
[1756605267072,0.92279896,109650.0,109640.0,0.41210517]
[1756605269477,0.92279896,109650.0,109640.0,0.07533]
[1756605269759,0.92279896,109650.0,109640.0,0.41210517]
[1756605269986,0.57994366,109650.0,109640.0,0.50508518]
[1756605270188,0.39754512,109650.0,109640.0,0.50508518]
[1756605270396,0.18739854,109650.0,109640.0,0.50508518]
[1756605270700,0.57994366,109650.0,109640.0,0.50508518]
[1756605271256,0.57994366,109650.0,109640.0,0.50008518]
[1756605272820,0.57994366,109650.0,109640.0,0.31763001]
[1756605273043,0.58192366,109650.0,109640.0,0.31763001]
[1756605273423,0.57994366,109650.0,109640.0,0.31763001]
[1756605274527,0.57994366,109650.0,109640.0,0.16331001]
[1756605274725,0.57994366,109650.0,109640.0,0.31763001]
[1756605276085,0.58279879,109650.0,109640.0,0.31763001]
[1756605279079,0.19025367,109650.0,109640.0,0.31763001]
[1756605279286,0.58279879,109650.0,109640.0,0.50004518]
[1756605279490,0.58279879,109650.0,109640.0,0.31763001]
[1756605279627,0.57994366,109650.0,109640.0,0.50004518]
[1756605279822,0.58279872,109650.0,109640.0,0.50004518]
[1756605283493,0.58279873,109650.0,109640.0,0.50004518]
[1756605289491,0.48480143,109650.0,109640.0,0.50004518]
[1756605293398,0.30240289,109650.0,109640.0,0.50004518]
[1756605294083,0.29954782,109650.0,109640.0,0.50004518]
[1756605294251,0.48480141,109650.0,109640.0,0.50004518]
[1756605297884,0.19025359,109650.0,109640.0,0.50004518]
[1756605298104,0.48480141,109650.0,109640.0,0.50004518]
[1756605300757,0.48480141,109650.0,109640.0,0.54905923]
[1756605302080,0.00785505,109650.0,109640.0,0.54905923]
[1756605302280,0.30240287,109650.0,109640.0,0.54905923]
[1756605303627,0.29954782,109650.0,109640.0,0.54905923]
[1756605303859,0.30240282,109650.0,109640.0,0.54905923]
[1756605306440,0.48480136,109650.0,109640.0,0.54905923]
[1756605307025,0.19025354,109650.0,109640.0,0.54905923]
[1756605307231,0.48480136,109650.0,109640.0,0.54905923]
[1756605309551,0.30240282,109650.0,109640.0,0.54905923]
[1756605309881,0.30240282,109650.0,109640.0,0.39473923]
[1756605310088,0.30240282,109650.0,109640.0,0.54889923]
[1756605314655,0.3024028,109650.0,109640.0,0.54889923]
[1756605314918,0.48678134,109650.0,109640.0,0.54889923]
[1756605315086,0.3043828,109650.0,109640.0,0.54889923]
[1756605316279,0.00785498,109650.0,109640.0,0.54889923]
[1756605316493,0.3024028,109650.0,109640.0,0.69889923]
[1756605316715,0.00785498,109650.0,109640.0,0.86438587]
[1756605316903,0.005,109650.0,109640.0,0.59725805]
[1756605317523,0.002,109650.0,109640.0,0.59725805]
[1756605317738,0.005,109650.0,109640.0,0.59725805]
[1756605318148,0.003,109650.0,109640.0,0.59725805]
[1756605318447,0.005,109650.0,109640.0,0.59725805]
[1756605318894,0.003,109650.0,109640.0,0.59725805]
[1756605319101,0.6466544,109660.0,109650.0,0.18239854]
[1756605319310,0.64950916,109660.0,109650.0,0.27437855]
[1756605319518,0.30950916,109660.0,109650.0,0.3276326]
[1756605320111,0.01210658,109660.0,109650.0,0.3276326]
[1756605320288,0.3066544,109660.0,109650.0,0.27861855]
[1756605320612,0.3096544,109660.0,109650.0,0.27861855]
[1756605321392,0.3116544,109660.0,109650.0,0.27861855]
[1756605323329,0.01710658,109660.0,109650.0,0.27861855]
[1756605323537,0.3116544,109660.0,109650.0,0.27861855]
[1756605323838,0.01410658,109660.0,109650.0,0.27861855]
[1756605324053,0.01610658,109660.0,109650.0,0.27861855]
[1756605324273,0.01410658,109660.0,109650.0,0.27861855]
[1756605324473,0.3086544,109660.0,109650.0,0.27861855]
[1756605324730,0.3106544,109660.0,109650.0,0.27861855]
[1756605324941,0.06963153,109660.0,109650.0,0.27861855]
[1756605325143,0.06763153,109660.0,109650.0,0.27861855]
[1756605325353,0.06863153,109660.0,109650.0,0.27861855]
[1756605326194,0.06963153,109660.0,109650.0,0.27861855]
[1756605326410,0.002,109660.0,109650.0,0.37167167]
[1756605326621,0.002,109660.0,109650.0,0.71523354]
[1756605326829,0.002,109660.0,109650.0,0.74264554]
[1756605327427,0.001,109660.0,109650.0,0.67053124]
[1756605327656,0.002,109660.0,109650.0,0.67053124]
[1756605328042,0.001,109660.0,109650.0,0.67053124]
[1756605328346,0.00104415,109670.0,109660.0,0.18119363]
[1756605328548,0.00118705,109670.0,109660.0,0.72573146]
[1756605328754,0.00118705,109670.0,109660.0,0.72774146]
[1756605329569,0.00118705,109670.0,109660.0,0.75515446]
[1756605329810,0.00118705,109670.0,109660.0,0.75715446]
[1756605331191,0.00118705,109670.0,109660.0,0.79782051]
[1756605334289,0.00118705,109670.0,109660.0,0.53584322]
[1756605334471,0.00118705,109670.0,109660.0,0.83039104]
[1756605334820,0.00118705,109670.0,109660.0,0.87940509]
[1756605337848,0.00118705,109670.0,109660.0,0.72536509]
[1756605338071,0.00118705,109670.0,109660.0,0.87940509]
[1756605341273,0.00118705,109670.0,109660.0,0.58485727]
[1756605341492,0.00118705,109670.0,109660.0,0.87940509]
[1756605342406,0.00118705,109670.0,109660.0,0.43081727]
[1756605342577,0.00118705,109670.0,109660.0,0.87936509]
[1756605342816,0.00118705,109670.0,109660.0,0.58481727]
[1756605343037,0.00118705,109670.0,109660.0,0.87936509]
[1756605344408,0.00118705,109670.0,109660.0,0.58481727]
[1756605344606,0.00118705,109670.0,109660.0,0.87936509]
[1756605346014,0.00118705,109670.0,109660.0,1.09856509]
[1756605346220,0.00118705,109670.0,109660.0,1.06595456]
[1756605347059,0.00118705,109670.0,109660.0,0.77140674]
[1756605347260,0.00118705,109670.0,109660.0,1.06595456]
[1756605347637,0.00118705,109670.0,109660.0,0.91195456]
[1756605347840,0.00118705,109670.0,109660.0,1.06595456]
[1756605348467,0.00118705,109670.0,109660.0,0.77140674]
[1756605348665,0.00118705,109670.0,109660.0,1.06595456]
[1756605352397,0.00118705,109670.0,109660.0,0.77140674]
[1756605352682,0.00118705,109670.0,109660.0,1.06595456]
[1756605354525,0.00118705,109670.0,109660.0,1.13607456]
[1756605355171,0.00118705,109670.0,109660.0,1.08706051]
[1756605356170,0.00118705,109670.0,109660.0,1.1526798]
[1756605361683,0.00118705,109670.0,109660.0,0.85813198]
[1756605361885,0.00118705,109670.0,109660.0,1.1526798]
[1756605362487,0.00118705,109670.0,109660.0,0.85813198]
[1756605362871,0.00118705,109670.0,109660.0,1.1526798]
[1756605367616,0.00118705,109670.0,109660.0,0.9986798]
[1756605367850,0.00118705,109670.0,109660.0,1.1525998]
[1756605369550,0.00118705,109670.0,109660.0,0.85805198]
[1756605369753,0.00118705,109670.0,109660.0,1.1525998]
[1756605373015,0.00118705,109670.0,109660.0,0.85805198]
[1756605373217,0.00118705,109670.0,109660.0,1.1525998]
[1756605375534,0.00118705,109670.0,109660.0,0.85805198]
[1756605375780,0.00118705,109670.0,109660.0,1.1525998]
[1756605376762,0.00118705,109670.0,109660.0,1.07075051]
[1756605382478,0.00118705,109670.0,109660.0,1.07067051]
[1756605385765,0.00118705,109670.0,109660.0,0.77612269]
[1756605385966,0.00118705,109670.0,109660.0,1.07067051]
[1756605386694,0.00118705,109670.0,109660.0,1.1362898]
[1756605388404,0.00118705,109670.0,109660.0,0.9824498]
[1756605388564,0.00118705,109670.0,109660.0,1.1362898]
[1756605389895,0.00118705,109670.0,109660.0,0.84174198]
[1756605390103,0.00118705,109670.0,109660.0,1.1362898]
[1756605393963,0.1271449,109680.0,109670.0,0.18236527]
[1756605394204,0.63560699,109690.0,109680.0,0.18234865]
[1756605394321,0.6409173,109690.0,109680.0,0.49924866]
[1756605394735,0.6409173,109690.0,109680.0,0.52666166]
[1756605395148,0.6409173,109690.0,109680.0,0.52566166]
[1756605395529,0.82324932,109690.0,109680.0,0.52566166]
[1756605396411,0.82324932,109690.0,109680.0,0.37186166]
[1756605396625,0.82424932,109690.0,109680.0,0.52566166]
[1756605397432,0.83434752,109690.0,109680.0,0.52566166]
[1756605397814,0.83634752,109690.0,109680.0,0.52566166]
[1756605400114,0.83634751,109690.0,109680.0,0.52566166]
[1756605400698,0.83634751,109690.0,109680.0,0.37186166]
[1756605400900,0.83349343,109690.0,109680.0,0.34427301]
[1756605401103,0.83634751,109690.0,109680.0,0.52662166]
[1756605404162,0.83634751,109690.0,109680.0,0.55930902]
[1756605407328,0.54179969,109690.0,109680.0,0.55930902]
[1756605407623,0.83634751,109690.0,109680.0,0.55930902]
[1756605410106,0.83634751,109690.0,109680.0,0.37696037]
[1756605410310,0.83634751,109690.0,109680.0,0.55930902]
[1756605410699,0.83349343,109690.0,109680.0,0.55930902]
[1756605410848,0.83634751,109690.0,109680.0,0.55930902]
[1756605413792,0.83334751,109690.0,109680.0,0.55930902]
[1756605414010,0.83434751,109690.0,109680.0,0.56233902]
[1756605414222,0.83634751,109690.0,109680.0,0.56233902]
[1756605414875,0.83634751,109690.0,109680.0,0.37999037]
[1756605415081,0.83634751,109690.0,109680.0,0.56233902]
[1756605415480,0.83634751,109690.0,109680.0,0.55930902]
[1756605415622,0.83634751,109690.0,109680.0,0.37696037]
[1756605415828,0.54179969,109690.0,109680.0,0.37696037]
[1756605416033,0.83434751,109690.0,109680.0,0.37696037]
[1756605416266,0.83534751,109690.0,109680.0,0.37696037]
[1756605417325,0.83534751,109690.0,109680.0,0.55930902]
[1756605418766,0.83534751,109690.0,109680.0,0.56233902]
[1756605418971,0.83534751,109690.0,109680.0,0.56225902]
[1756605419456,0.83534751,109690.0,109680.0,0.22320037]
[1756605419655,0.83534751,109690.0,109680.0,0.37688037]
[1756605421137,0.83534752,109690.0,109680.0,0.37688037]
[1756605421555,0.83675752,109690.0,109680.0,0.22320037]
[1756605421763,1.13130534,109690.0,109680.0,0.25648736]
[1756605421971,1.15872034,109690.0,109680.0,0.25648736]
[1756605422811,1.15872034,109690.0,109680.0,0.2238]
[1756605428964,1.15731034,109690.0,109680.0,0.2238]
[1756605430925,1.15445625,109690.0,109680.0,0.2238]
[1756605431130,1.15731047,109690.0,109680.0,0.2238]
[1756605434271,5.23853965,109690.0,109680.0,0.07012]
[1756605434480,5.73933897,109690.0,109680.0,0.22376]
[1756605438270,5.73932562,109690.0,109680.0,0.22376]
[1756605438834,5.14881998,109690.0,109680.0,0.22376]
[1756605439035,5.73791562,109690.0,109680.0,0.22376]
[1756605439420,5.73791562,109690.0,109680.0,0.07012]
[1756605439642,5.73791562,109690.0,109680.0,0.22372]
[1756605441848,5.73790679,109690.0,109680.0,0.22372]
[1756605442658,5.73790648,109690.0,109680.0,0.22372]
[1756605444867,5.80877523,109690.0,109680.0,0.22372]
[1756605445116,5.73790648,109690.0,109680.0,0.22372]
[1756605445499,5.73790669,109690.0,109680.0,0.22372]
[1756605446465,5.73790669,109690.0,109680.0,0.07012]
[1756605446647,5.73790669,109690.0,109680.0,0.22372]
[1756605448987,5.73790922,109690.0,109680.0,0.22372]
[1756605450028,5.73790922,109690.0,109680.0,0.07012]
[1756605450225,5.73790922,109690.0,109680.0,0.22372]
[1756605450486,5.73790922,109690.0,109680.0,0.07012]
[1756605450697,5.73790922,109690.0,109680.0,0.22372]
[1756605451195,5.73790978,109690.0,109680.0,0.22372]
[1756605451996,5.8262061,109690.0,109680.0,0.22372]
[1756605452505,5.81979305,109690.0,109680.0,0.22372]
[1756605452866,5.73791144,109690.0,109680.0,0.07012]
[1756605453062,5.73791144,109690.0,109680.0,0.22368]
[1756605457715,5.73791144,109690.0,109680.0,0.07012]
[1756605457934,0.52236527,109670.0,109660.0,0.07012]
[1756605458131,1.1143155,109670.0,109660.0,0.22677]
[1756605458334,1.1143155,109670.0,109660.0,0.2289]
[1756605458557,1.1417345,109670.0,109660.0,0.2289]
[1756605458991,1.1417345,109670.0,109660.0,0.2299]
[1756605459767,1.1417345,109670.0,109660.0,0.2289]
[1756605459768,1.1437145,109670.0,109660.0,0.2289]
[1756605460183,1.1447145,109670.0,109660.0,0.2289]
[1756605462492,1.1447145,109670.0,109660.0,0.22886]
[1756605463321,1.14471472,109670.0,109660.0,0.07534]
[1756605463500,1.14273472,109670.0,109660.0,0.22886]
[1756605463702,1.13987991,109670.0,109660.0,0.22886]
[1756605463930,1.14273472,109670.0,109660.0,0.22886]
[1756605464760,1.14471472,109670.0,109660.0,0.22886]
[1756605465214,1.16182352,109670.0,109660.0,0.22886]
[1756605466837,1.16182218,109670.0,109660.0,0.22886]
[1756605470394,1.16181782,109670.0,109660.0,0.22886]
[1756605473038,0.57074218,109670.0,109660.0,0.22886]
[1756605473256,1.16181782,109670.0,109660.0,0.07012]
[1756605473474,0.57913599,109670.0,109660.0,0.22886]
[1756605473688,1.16823163,109670.0,109660.0,0.2236]
[1756605473959,1.14185991,109670.0,109660.0,0.2236]
[1756605474187,1.16823253,109670.0,109660.0,0.2236]
[1756605474399,1.16823253,109670.0,109660.0,0.22676]
[1756605475207,0.82823253,109670.0,109660.0,0.22886]
[1756605477485,1.16823253,109670.0,109660.0,0.22886]
[1756605477673,1.16823043,109670.0,109660.0,0.22886]
[1756605479627,1.16823043,109670.0,109660.0,0.22676]
[1756605482592,0.57715479,109670.0,109660.0,0.22886]
[1756605482780,1.16625043,109670.0,109660.0,0.22886]
[1756605483398,1.13987991,109670.0,109660.0,0.22886]
[1756605483602,1.16625526,109670.0,109660.0,0.22886]
[1756605487204,1.16625709,109670.0,109660.0,0.22886]
[1756605490303,0.57716145,109670.0,109660.0,0.22886]